bitfinex/quotes_SOLUSD_20250313
["timestamp","ask_amount","ask_price","bid_price","bid_amount"]
[1741851387040,23.36360088,124.6,124.56,7.7434]
[1741851387332,15.33770088,124.59,124.56,7.7434]
[1741851388133,15.33770088,124.58,124.56,7.7434]
[1741851388937,23.36460088,124.58,124.56,7.7434]
[1741851391336,23.36460088,124.58,124.56,0.063]
[1741851391550,15.33770088,124.57,124.56,0.063]
[1741851392241,15.33770088,124.58,124.56,0.063]
[1741851394238,23.36470088,124.58,124.56,0.063]
[1741851394740,15.33770088,124.59,124.56,0.063]
[1741851394932,15.33770088,124.58,124.56,0.063]
[1741851395642,15.33770088,124.59,124.56,0.063]
[1741851395843,23.36420088,124.59,124.56,0.063]
[1741851396421,15.33770088,124.58,124.56,0.063]
[1741851397422,23.36410088,124.59,124.56,0.063]
[1741851398322,15.33770088,124.58,124.56,0.063]
[1741851399240,23.36480088,124.58,124.56,0.063]
[1741851401235,15.33770088,124.58,124.56,0.063]
[1741851402147,23.36470088,124.58,124.56,0.063]
[1741851406251,20.0,124.58,124.56,0.063]
[1741851406551,15.33770088,124.58,124.56,0.063]
[1741851407649,35.33770088,124.58,124.56,0.063]
[1741851407951,23.36490088,124.58,124.56,0.063]
[1741851409560,43.36490088,124.58,124.56,0.063]
[1741851410960,15.33770088,124.57,124.56,0.063]
[1741851413332,23.36530088,124.57,124.56,0.063]
[1741851414459,43.36490088,124.58,124.56,0.063]
[1741851414832,15.33770088,124.57,124.56,0.063]
[1741851415537,23.36530088,124.57,124.56,0.063]
[1741851418344,15.33770088,124.57,124.56,0.063]
[1741851419362,23.36530088,124.57,124.56,0.063]
[1741851419665,15.33770088,124.57,124.56,0.063]
[1741851419849,43.36490088,124.58,124.56,0.063]
[1741851423155,15.33770088,124.57,124.56,0.063]
[1741851423664,23.36530088,124.57,124.56,0.063]
[1741851423842,15.33770088,124.57,124.56,0.063]
[1741851424040,35.33770088,124.58,124.56,0.063]
[1741851424358,20.0,124.58,124.56,0.063]
[1741851424746,35.33770088,124.58,124.56,0.063]
[1741851425263,20.0,124.58,124.56,0.063]
[1741851425666,35.33770088,124.58,124.56,0.063]
[1741851426239,43.36460088,124.58,124.56,0.063]
[1741851426456,20.0,124.58,124.56,0.063]
[1741851427263,0.03,124.61,124.57,7.6066]
[1741851427470,0.03,124.61,124.58,15.33770088]
[1741851427641,23.39300088,124.61,124.57,7.6066]
[1741851427847,15.33770088,124.6,124.57,7.6066]
[1741851429270,15.33770088,124.59,124.56,82.333]
[1741851430068,23.36340088,124.6,124.56,82.333]
[1741851430371,23.39280088,124.61,124.56,90.3611]
[1741851431678,15.36770088,124.61,124.56,105.69880088]
[1741851432356,0.03,124.61,124.56,105.69880088]
[1741851434377,15.36770088,124.61,124.56,105.69880088]
[1741851434679,20.03,124.61,124.58,1.6248]
[1741851434880,15.33770088,124.6,124.58,1.6248]
[1741851435858,43.39270088,124.61,124.58,1.6248]
[1741851437074,35.36770088,124.61,124.58,1.6248]
[1741851437991,15.33770088,124.6,124.58,1.6248]
[1741851439181,35.36770088,124.61,124.58,1.6248]
[1741851439679,20.03,124.61,124.58,1.6248]
[1741851439883,35.36770088,124.61,124.58,9.6515]
[1741851440677,35.36770088,124.61,124.58,1.6248]
[1741851441290,43.39280088,124.61,124.58,1.6248]
[1741851441692,15.33770088,124.6,124.58,1.6248]
[1741851441890,15.33770088,124.59,124.56,82.333]
[1741851442106,15.33770088,124.58,124.56,82.333]
[1741851443489,23.36470088,124.58,124.56,82.333]
[1741851443800,15.33770088,124.58,124.56,82.333]
[1741851444005,15.33770088,124.58,124.56,0.063]
[1741851444987,8.0259,124.6,124.56,0.063]
[1741851444988,15.33770088,124.59,124.56,0.063]
[1741851445188,15.33770088,124.6,124.56,0.063]
[1741851447909,23.36340088,124.6,124.56,0.063]
[1741851448093,15.33770088,124.59,124.56,0.063]
[1741851449099,15.33770088,124.6,124.56,0.063]
[1741851449707,15.33770088,124.6,124.56,82.333]
[1741851450707,35.33770088,124.6,124.56,82.333]
[1741851451587,35.33770088,124.6,124.56,90.361]
[1741851452092,20.0,124.6,124.56,90.361]
[1741851452414,20.0,124.6,124.56,105.69870088]
[1741851453088,15.36770088,124.61,124.56,105.69870088]
[1741851455117,0.03,124.61,124.56,105.69870088]
[1741851455594,15.36770088,124.61,124.56,105.69870088]
[1741851455793,15.33770088,124.6,124.56,90.361]
[1741851456111,23.39280088,124.61,124.56,105.69870088]
[1741851458209,15.33770088,124.6,124.56,0.063]
[1741851458409,15.33770088,124.58,124.56,0.063]
[1741851459119,15.33770088,124.57,124.56,0.063]
[1741851460523,23.36530088,124.57,124.56,0.063]
[1741851460812,15.33770088,124.58,124.56,0.063]
[1741851462111,35.33770088,124.59,124.56,0.063]
[1741851463514,43.36420088,124.59,124.56,0.063]
[1741851463916,15.33770088,124.58,124.56,0.063]
[1741851464109,35.33770088,124.59,124.56,0.063]
[1741851464522,43.36410088,124.59,124.56,0.063]
[1741851465916,35.33770088,124.59,124.56,0.063]
[1741851466424,43.36410088,124.59,124.56,0.063]
[1741851468520,35.33770088,124.59,124.56,0.063]
[1741851468825,15.33770088,124.6,124.56,0.063]
[1741851469004,15.33770088,124.6,124.57,1.617]
[1741851470020,8.0553,124.61,124.57,9.6445]
[1741851470021,35.36770088,124.61,124.57,9.6445]
[1741851470914,43.39270088,124.61,124.57,9.6445]
[1741851471116,35.36770088,124.61,124.57,9.6445]
[1741851472906,43.39270088,124.61,124.57,1.617]
[1741851474631,15.33770088,124.6,124.57,1.617]
[1741851475833,35.36770088,124.61,124.57,1.617]
[1741851476127,35.36770088,124.61,124.57,99.2345]
[1741851476922,15.33770088,124.6,124.57,91.207]
[1741851477833,15.33770088,124.6,124.57,99.2345]
[1741851478010,15.33770088,124.6,124.57,91.207]
[1741851478907,8.0263,124.59,124.57,91.207]
[1741851479114,15.33770088,124.6,124.57,91.207]
[1741851479313,23.36360088,124.6,124.57,91.207]
[1741851480608,15.33770088,124.6,124.57,91.207]
[1741851484021,15.33770088,124.58,124.57,82.27]
[1741851485412,23.36460088,124.58,124.57,82.27]
[1741851485933,23.36460088,124.58,124.56,0.063]
[1741851486920,28.0898,124.6,124.56,0.063]
[1741851487111,15.33770088,124.58,124.56,0.063]
[1741851487512,15.33770088,124.57,124.56,0.063]
[1741851489644,23.36530088,124.57,124.56,0.063]
[1741851489936,0.28432314,124.56,124.55,0.063]
[1741851490139,34.27167288,124.56,124.55,0.063]
[1741851490314,34.27167288,124.56,124.54,0.063]
[1741851490514,15.33770088,124.55,124.54,0.063]
[1741851491744,42.30057288,124.55,124.54,0.063]
[1741851492041,20.0,124.53,124.52,0.063]
[1741851492240,76.6885044,124.53,124.5,0.063]
[1741851492541,15.33770088,124.51,124.5,0.063]
[1741851495614,0.14216157,124.55,124.5,0.063]
[1741851495615,15.33770088,124.52,124.5,0.063]
[1741851496021,15.33770088,124.51,124.5,0.063]
[1741851496724,15.33770088,124.52,124.5,0.063]
[1741851500833,15.33770088,124.52,124.5,8.0951]
[1741851502030,15.33770088,124.52,124.5,0.063]
[1741851503347,15.33770088,124.53,124.5,0.063]
[1741851503545,15.33770088,124.54,124.5,0.063]
[1741851504352,35.33770088,124.53,124.5,0.063]
[1741851506841,15.33770088,124.52,124.5,0.063]
[1741851507349,15.33770088,124.51,124.5,0.063]
[1741851508334,23.36910088,124.51,124.5,0.063]
[1741851509447,15.33770088,124.51,124.5,0.063]
[1741851514561,23.36910088,124.51,124.5,0.063]
[1741851517656,42.30307288,124.51,124.5,0.063]
[1741851518649,42.16091131,124.51,124.5,0.063]
[1741851519465,42.30307288,124.51,124.5,0.063]
[1741851521569,18.933972,124.5,124.49,0.063]
[1741851521749,34.27167288,124.5,124.49,0.063]
[1741851522544,34.27167288,124.5,124.49,0.0001]
[1741851523757,42.30377288,124.5,124.49,0.0001]
[1741851525357,43.88867288,124.5,124.48,0.02]
[1741851525559,20.0,124.47,124.46,0.063]
[1741851525768,43.37170088,124.47,124.46,0.063]
[1741851526763,62.30567288,124.47,124.46,0.063]
[1741851530569,43.37170088,124.47,124.46,0.063]
[1741851541787,20.0,124.47,124.46,0.063]
[1741851542480,15.33770088,124.47,124.46,0.063]
[1741851542688,23.37170088,124.47,124.46,0.063]
[1741851542989,43.37170088,124.47,124.46,0.063]
[1741851545510,42.30567288,124.47,124.46,0.063]
[1741851548320,0.14216157,124.46,124.45,0.063]
[1741851548617,76.83066597,124.46,124.45,0.063]
[1741851548797,95.6224764,124.46,124.45,0.0001]
[1741851549817,103.6571764,124.46,124.45,0.0001]
[1741851550515,103.6571764,124.46,124.44,0.063]
[1741851550711,15.47986245,124.45,124.44,0.063]
[1741851552319,23.51516245,124.45,124.44,0.063]
[1741851553416,42.16481131,124.45,124.44,0.063]
[1741851553608,23.37300088,124.45,124.44,0.063]
[1741851554108,42.16481131,124.45,124.44,0.063]
[1741851554517,42.30697288,124.45,124.44,0.063]
[1741851555418,42.16481131,124.45,124.44,0.063]
[1741851555820,42.30697288,124.45,124.44,0.063]
[1741851557818,42.30697288,124.45,124.44,0.0001]
[1741851559322,20.0,124.41,124.37,6.1588]
[1741851559517,15.33770088,124.4,124.37,6.1588]
[1741851561337,15.33770088,124.4,124.37,14.199]
[1741851561906,20.0,124.41,124.38,1.5235]
[1741851563118,35.33770088,124.41,124.38,1.5235]
[1741851565012,35.33770088,124.41,124.38,9.5632]
[1741851565325,18.79181043,124.44,124.38,9.5632]
[1741851565521,15.33770088,124.43,124.38,107.23390088]
[1741851566323,23.37390088,124.44,124.38,107.23390088]
[1741851566527,8.0656,124.45,124.39,15.33770088]
[1741851566713,15.33770088,124.44,124.39,6.6265]
[1741851567229,15.33770088,124.44,124.39,21.96420088]
[1741851567807,15.33770088,124.44,124.4,8.0385]
[1741851569923,0.03,124.45,124.43,6.0338]
[1741851570131,0.03,124.45,124.43,21.37150088]
[1741851570717,0.03,124.45,124.43,6.0338]
[1741851573012,0.03,124.45,124.43,88.3038]
[1741851573213,0.03,124.45,124.43,96.3403]
[1741851574126,0.03,124.45,124.43,88.3038]
[1741851574431,15.36770088,124.45,124.43,88.3038]
[1741851574629,15.33770088,124.44,124.43,82.27]
[1741851575145,15.33770088,124.44,124.41,1.6664]
[1741851575331,0.03,124.45,124.41,1.6664]
[1741851575332,15.33770088,124.43,124.41,1.6664]
[1741851575534,15.33770088,124.42,124.41,1.6664]
[1741851575833,15.33770088,124.42,124.4,88.6669]
[1741851576136,15.33770088,124.41,124.4,82.27]
[1741851576510,15.33770088,124.41,124.38,9.7352]
[1741851576715,15.33770088,124.41,124.38,1.6954]
[1741851577329,15.33770088,124.41,124.38,9.7352]
[1741851577522,15.33770088,124.42,124.38,9.7352]
[1741851578522,15.33770088,124.44,124.39,15.33770088]
[1741851578733,15.33770088,124.44,124.39,235.40770088]
[1741851579055,15.36770088,124.45,124.4,15.33770088]
[1741851579214,0.03,124.45,124.41,15.33770088]
[1741851579414,0.03,124.45,124.41,22.63770088]
[1741851579722,15.33770088,124.44,124.41,89.57]
[1741851580030,8.0654,124.45,124.41,89.57]
[1741851580031,35.36770088,124.45,124.41,227.37]
[1741851580334,35.36770088,124.45,124.41,235.4075]
[1741851581936,35.36770088,124.45,124.41,227.37]
[1741851582136,43.40350088,124.45,124.41,227.37]
[1741851582437,35.36770088,124.45,124.41,235.4078]
[1741851583035,35.36770088,124.45,124.41,227.37]
[1741851583238,43.40320088,124.45,124.41,227.37]
[1741851584127,15.33770088,124.42,124.39,82.27]
[1741851584328,15.33770088,124.41,124.39,82.27]
[1741851584527,23.37570088,124.41,124.39,82.27]
[1741851584732,15.33770088,124.42,124.39,82.27]
[1741851585037,23.37460088,124.43,124.39,90.3092]
[1741851585234,38.82181043,124.45,124.39,90.3092]
[1741851585448,23.37380088,124.44,124.39,90.3092]
[1741851585616,15.33770088,124.43,124.39,82.27]
[1741851586043,23.37380088,124.44,124.39,90.309]
[1741851586434,15.33770088,124.42,124.39,82.27]
[1741851589246,23.37500088,124.42,124.39,82.27]
[1741851590028,23.37500088,124.42,124.39,82.333]
[1741851590224,15.33770088,124.42,124.39,82.333]
[1741851590941,15.33770088,124.42,124.39,90.3721]
[1741851591248,15.33770088,124.42,124.39,82.333]
[1741851592635,23.37500088,124.42,124.39,82.333]
[1741851593144,15.33770088,124.42,124.39,82.333]
[1741851593642,15.33770088,124.43,124.39,90.3721]
[1741851594026,15.33770088,124.43,124.39,82.333]
[1741851594228,15.33770088,124.42,124.39,82.333]
[1741851595036,23.37500088,124.42,124.39,82.333]
[1741851595628,15.33770088,124.4,124.39,0.063]
[1741851596048,15.33770088,124.41,124.39,0.063]
[1741851597051,23.37590088,124.41,124.39,0.063]
[1741851598753,15.33770088,124.41,124.39,0.063]
[1741851599282,8.038,124.41,124.39,0.063]
[1741851599579,15.33770088,124.41,124.39,0.063]
[1741851600275,15.33770088,124.42,124.39,0.063]
[1741851600464,8.0366,124.43,124.39,0.063]
[1741851600768,23.37430088,124.43,124.39,0.063]
[1741851600968,20.0,124.43,124.4,15.33770088]
[1741851601163,20.0,124.43,124.39,90.372]
[1741851601367,43.37440088,124.43,124.39,82.333]
[1741851601770,35.33770088,124.43,124.39,90.372]
[1741851602473,35.33770088,124.43,124.39,82.333]
[1741851602675,43.37440088,124.43,124.39,82.333]
[1741851603874,35.33770088,124.43,124.39,90.3721]
[1741851604372,43.37430088,124.43,124.39,90.3721]
[1741851604562,43.37430088,124.43,124.39,82.333]
[1741851604762,15.36770088,124.45,124.39,105.70970088]
[1741851604949,23.40340088,124.45,124.39,243.50970088]
[1741851605150,0.03,124.45,124.42,8.0372]
[1741851605358,0.03,124.45,124.42,228.1072]
[1741851608980,0.03,124.45,124.43,15.33770088]
[1741851609174,0.03,124.45,124.44,7.5101]
[1741851614583,0.03,124.45,124.44,15.5461]
[1741851615393,0.03,124.45,124.44,7.5101]
[1741851616290,0.03,124.45,124.44,22.8461]
[1741851616497,0.03,124.45,124.44,14.8101]
[1741851617788,0.03,124.45,124.44,8.8003]
[1741851617991,15.36770088,124.45,124.43,82.27]
[1741851618293,15.33770088,124.44,124.43,82.27]
[1741851619079,15.36770088,124.45,124.43,82.27]
[1741851619982,0.03,124.45,124.43,82.27]
[1741851621586,15.36770088,124.45,124.43,82.27]
[1741851621894,15.33770088,124.44,124.43,82.27]
[1741851622107,20.03,124.45,124.43,82.27]
[1741851622301,15.33770088,124.44,124.43,82.27]
[1741851622804,15.33770088,124.44,124.42,82.27]
[1741851623694,15.33770088,124.44,124.41,90.378]
[1741851624296,43.40310088,124.45,124.41,16.1458]
[1741851624494,43.40310088,124.45,124.41,8.108]
[1741851625597,28.0654,124.45,124.41,8.108]
[1741851625802,15.33770088,124.44,124.41,8.171]
[1741851626176,15.33770088,124.43,124.41,0.063]
[1741851626691,15.33770088,124.42,124.41,0.063]
[1741851628307,23.37490088,124.42,124.41,0.063]
[1741851628707,42.16671131,124.42,124.41,0.063]
[1741851629605,20.0,124.4,124.39,0.063]
[1741851629805,54.12951131,124.4,124.39,0.063]
[1741851630193,62.16801131,124.4,124.39,0.063]
[1741851630591,28.0385,124.4,124.39,0.063]
[1741851630803,43.37620088,124.4,124.39,0.063]
[1741851635210,62.16801131,124.4,124.39,0.063]
[1741851636815,18.933972,124.39,124.38,0.063]
[1741851637021,95.6224764,124.39,124.38,0.063]
[1741851637207,95.48031483,124.39,124.37,0.063]
[1741851637402,34.12951131,124.38,124.37,0.063]
[1741851637602,42.16931131,124.38,124.37,0.063]
[1741851637923,42.31147288,124.38,124.37,0.063]
[1741851639305,42.16931131,124.38,124.37,0.063]
[1741851640897,48.63179545,124.38,124.37,0.063]
[1741851641316,48.77395702,124.38,124.37,0.063]
[1741851641927,20.0,124.35,124.33,0.063]
[1741851642125,15.33770088,124.34,124.33,0.063]
[1741851644428,35.33770088,124.35,124.33,0.063]
[1741851644625,15.33770088,124.34,124.33,0.063]
[1741851644830,23.38010088,124.34,124.33,0.063]
[1741851645609,15.33770088,124.34,124.33,0.063]
[1741851646436,35.33770088,124.35,124.33,0.063]
[1741851646611,15.33770088,124.34,124.33,0.063]
[1741851647615,23.38010088,124.34,124.33,0.063]
[1741851651637,42.17191131,124.34,124.33,0.063]
[1741851654134,23.38010088,124.34,124.33,0.063]
[1741851655033,42.17191131,124.34,124.33,0.063]
[1741851657443,15.33770088,124.34,124.33,0.063]
[1741851659053,23.38010088,124.34,124.33,0.063]
[1741851659257,15.33770088,124.34,124.33,0.063]
[1741851660054,0.03,124.37,124.33,0.063]
[1741851660259,15.33770088,124.35,124.33,82.363]
[1741851660752,0.03,124.37,124.33,137.863]
[1741851660975,15.33770088,124.36,124.33,137.863]
[1741851661255,15.33770088,124.35,124.33,137.863]
[1741851662946,15.33770088,124.36,124.33,137.863]
[1741851663661,15.33770088,124.36,124.33,145.906]
[1741851663831,15.33770088,124.35,124.33,220.163]
[1741851664338,23.37960088,124.35,124.33,220.163]
[1741851664751,15.33770088,124.35,124.33,220.163]
[1741851665144,15.33770088,124.34,124.33,220.163]
[1741851665952,15.33770088,124.35,124.33,220.163]
[1741851667344,23.37950088,124.35,124.33,220.163]
[1741851667746,15.33770088,124.34,124.33,0.063]
[1741851668573,23.38010088,124.34,124.33,0.063]
[1741851669251,42.17191131,124.34,124.33,0.063]
[1741851672245,42.31407288,124.34,124.33,0.063]
[1741851673466,42.17191131,124.34,124.33,0.063]
[1741851674676,15.33770088,124.34,124.33,0.063]
[1741851675058,23.38010088,124.34,124.33,0.063]
[1741851675270,15.33770088,124.34,124.33,0.063]
[1741851677270,23.38010088,124.34,124.33,0.063]
[1741851681856,15.33770088,124.34,124.33,0.063]
[1741851682674,20.0,124.35,124.33,0.063]
[1741851683473,35.33770088,124.35,124.33,0.063]
[1741851683985,15.33770088,124.34,124.33,0.063]
[1741851685687,43.38010088,124.34,124.33,0.063]
[1741851686479,35.33770088,124.34,124.33,0.063]
[1741851687274,35.33770088,124.35,124.33,0.063]
[1741851689892,15.33770088,124.36,124.33,0.063]
[1741851690201,15.33770088,124.35,124.33,0.063]
[1741851692996,15.33770088,124.35,124.33,82.363]
[1741851693501,15.33770088,124.34,124.33,82.363]
[1741851694407,42.17191131,124.34,124.33,82.363]
[1741851694782,42.31407288,124.34,124.33,0.063]
[1741851694977,42.31407288,124.34,124.31,0.063]
[1741851694978,38.79181043,124.32,124.31,0.063]
[1741851695175,54.12951131,124.32,124.31,0.063]
[1741851696518,62.17321131,124.32,124.31,0.063]
[1741851697911,123.6661764,124.32,124.31,0.063]
[1741851698522,35.33770088,124.32,124.31,0.063]
[1741851698914,43.38140088,124.32,124.31,0.063]
[1741851699094,35.33770088,124.32,124.31,0.063]
[1741851699422,15.33770088,124.33,124.31,0.063]
[1741851699590,15.33770088,124.34,124.31,0.063]
[1741851699793,8.0412,124.36,124.31,82.363]
[1741851700013,15.33770088,124.34,124.31,82.363]
[1741851700903,15.33770088,124.34,124.31,90.4068]
[1741851701626,18.67964886,124.37,124.31,90.4068]
[1741851701793,35.33770088,124.35,124.31,90.4068]
[1741851702000,15.33770088,124.36,124.31,90.4068]
[1741851702326,15.36770088,124.37,124.32,15.33770088]
[1741851702503,15.36770088,124.37,124.31,263.65550088]
[1741851703410,15.36770088,124.37,124.32,15.33770088]
[1741851704033,15.36770088,124.37,124.33,8.0431]
[1741851705532,15.33770088,124.36,124.32,8.0437]
[1741851706328,15.33770088,124.35,124.32,8.0437]
[1741851707037,35.33770088,124.36,124.32,8.0437]
[1741851707425,20.0,124.36,124.32,8.0437]
[1741851707734,35.33770088,124.36,124.32,228.1437]
[1741851708035,15.33770088,124.35,124.32,228.1437]
[1741851708531,35.33770088,124.36,124.32,228.1437]
[1741851710017,15.36770088,124.37,124.32,228.1437]
[1741851710210,35.36770088,124.37,124.32,228.1437]
[1741851710411,0.03,124.35,124.32,228.1437]
[1741851712459,0.03,124.35,124.33,1.6482]
[1741851713661,0.03,124.35,124.33,221.7482]
[1741851714065,0.03,124.35,124.34,8.0424]
[1741851714359,0.03,124.35,124.34,90.3424]
[1741851714668,0.03,124.35,124.34,82.3]
[1741851725769,0.03,124.35,124.34,90.3424]
[1741851726274,0.03,124.35,124.34,82.3]
[1741851727665,0.03,124.35,124.34,90.3424]
[1741851727868,0.03,124.35,124.34,112.15760088]
[1741851728367,0.03,124.35,124.34,249.95760088]
[1741851729349,0.03,124.35,124.34,250.24192402]
[1741851731871,0.03,124.37,124.34,270.34802402]
[1741851732067,0.03,124.37,124.36,16.87110088]
[1741851732468,0.03,124.41,124.37,82.3]
[1741851732670,0.03,124.41,124.38,15.33770088]
[1741851733256,0.03,124.41,124.4,8.0385]
[1741851733454,0.03,124.41,124.4,228.1385]
[1741851733654,0.03,124.41,124.4,243.47620088]
[1741851735279,0.03,124.41,124.4,245.13380088]
[1741851735570,0.03,124.41,124.4,245.41812402]
[1741851739961,0.03,124.45,124.42,82.27]
[1741851740284,0.03,124.45,124.42,242.68770088]
[1741851741069,0.03,124.45,124.42,250.72470088]
[1741851744080,0.03,124.45,124.44,15.33770088]
[1741851744291,0.03,124.45,124.44,97.60770088]
[1741851747888,0.03,124.45,124.44,105.64370088]
[1741851748388,0.03,124.45,124.44,97.60770088]
[1741851748776,0.03,124.45,124.44,235.40770088]
[1741851750691,0.03,124.45,124.44,243.44370088]
[1741851751493,0.03,124.45,124.44,235.40770088]
[1741851753695,0.03,124.45,124.44,220.07]
[1741851754695,0.03,124.45,124.44,82.27]
[1741851756584,0.03,124.45,124.44,105.64370088]
[1741851757083,0.03,124.45,124.44,97.60770088]
[1741851757490,0.03,124.45,124.44,105.64370088]
[1741851757693,0.03,124.45,124.44,97.60770088]
[1741851758285,0.03,124.45,124.44,82.27]
[1741851760198,0.03,124.45,124.44,90.306]
[1741851761699,0.03,124.45,124.44,82.27]
[1741851765110,15.36770088,124.45,124.44,82.27]
[1741851765404,0.03,124.45,124.44,82.27]
[1741851765701,15.36770088,124.45,124.41,82.27]
[1741851765888,15.36770088,124.45,124.41,89.55]
[1741851767009,23.40310088,124.45,124.41,89.55]
[1741851768706,23.40310088,124.45,124.41,89.613]
[1741851769404,8.0654,124.45,124.41,89.613]
[1741851770405,0.03,124.45,124.41,89.613]
[1741851770594,0.03,124.45,124.41,97.6508]
[1741851770790,8.0656,124.45,124.41,89.613]
[1741851772619,8.0656,124.45,124.41,82.333]
[1741851772916,8.0656,124.45,124.41,89.613]
[1741851773615,0.03,124.45,124.41,97.6508]
[1741851773819,0.03,124.45,124.41,112.98850088]
[1741851775220,0.03,124.45,124.41,250.78850088]
[1741851775725,0.03,124.45,124.42,15.33770088]
[1741851776033,0.03,124.45,124.43,15.33770088]
[1741851776406,0.03,124.45,124.43,235.40770088]
[1741851778814,0.03,124.45,124.43,243.44420088]
[1741851781312,0.03,124.45,124.43,235.40770088]
[1741851781728,0.03,124.45,124.43,220.07]
[1741851785844,15.36770088,124.45,124.43,220.07]
[1741851786041,35.33770088,124.44,124.43,82.27]
[1741851786235,43.37370088,124.44,124.43,82.27]
[1741851788646,28.036,124.44,124.43,82.27]
[1741851788848,43.37370088,124.44,124.43,82.27]
[1741851793449,28.036,124.44,124.43,82.27]
[1741851793654,43.37370088,124.44,124.43,82.27]
[1741851795053,20.0,124.44,124.43,82.27]
[1741851796936,43.37370088,124.44,124.43,82.27]
[1741851801865,28.036,124.44,124.43,82.27]
[1741851802066,43.37370088,124.44,124.43,82.27]
[1741851803664,43.40370088,124.44,124.43,82.27]
[1741851809145,28.066,124.44,124.43,82.27]
[1741851809345,43.40370088,124.44,124.43,82.27]
[1741851809946,20.03,124.44,124.43,82.27]
[1741851810662,35.36770088,124.44,124.43,82.27]
[1741851813550,20.03,124.44,124.43,82.27]
[1741851814067,0.03,124.44,124.43,82.27]
[1741851818254,0.03,124.44,124.43,90.3066]
[1741851818454,0.03,124.44,124.43,82.27]
[1741851818866,0.03,124.44,124.43,105.64430088]
[1741851819066,0.03,124.44,124.43,243.44430088]
[1741851819468,0.03,124.44,124.43,235.40770088]
[1741851819975,0.03,124.44,124.43,243.44430088]
[1741851821077,0.03,124.44,124.43,228.1066]
[1741851822454,0.03,124.44,124.43,243.44430088]
[1741851824478,0.03,124.44,124.43,243.72862402]
[1741851825261,0.03,124.44,124.43,243.44430088]
[1741851825776,0.03,124.44,124.43,228.1066]
[1741851826382,0.03,124.44,124.43,243.44430088]
[1741851829961,15.36770088,124.44,124.43,82.27]
[1741851831162,34.01734974,124.44,124.43,82.27]
[1741851831364,38.64964886,124.42,124.41,0.063]
[1741851831683,53.98734974,124.42,124.41,0.063]
[1741851833686,62.02454974,124.42,124.41,0.063]
[1741851833862,62.16671131,124.42,124.41,0.063]
[1741851835267,53.98734974,124.42,124.41,0.063]
[1741851836184,62.02454974,124.42,124.41,0.063]
[1741851839188,20.0,124.42,124.41,0.063]
[1741851839388,20.03,124.44,124.41,0.063]
[1741851839684,0.03,124.44,124.41,242.73070088]
[1741851840073,0.03,124.44,124.41,227.393]
[1741851840676,15.36770088,124.44,124.41,227.393]
[1741851841081,0.03,124.44,124.41,227.393]
[1741851842674,0.03,124.44,124.41,250.76850088]
[1741851844799,0.03,124.44,124.41,227.393]
[1741851846692,15.36770088,124.44,124.41,227.393]
[1741851846899,23.40370088,124.44,124.41,227.393]
[1741851848794,15.36770088,124.44,124.41,227.393]
[1741851849003,35.36770088,124.44,124.41,227.393]
[1741851849489,0.03,124.44,124.41,235.4307]
[1741851850299,15.36770088,124.44,124.41,235.4307]
[1741851850903,15.36770088,124.44,124.41,227.393]
[1741851851287,15.36770088,124.44,124.41,89.593]
[1741851851486,15.36770088,124.44,124.41,97.6307]
[1741851853197,0.03,124.44,124.41,97.6307]
[1741851854003,15.36770088,124.44,124.41,97.6307]
[1741851860210,15.33770088,124.43,124.41,89.593]